[Event "Titled Tuesday Blitz March 28 Late 2023"]
[White "Spata, German"]
[Black "Lorenzo De La Riva, Lazaro"]
[WhiteFideId "113026"]
[BlackFideId "2268809"]
[WhiteElo "2238"]
[BlackElo "2294"]
[Result "1-0"]
[Round "04"]
[TimeControl "180+2"]
[Date "2023.03.28"]
[WhiteClock "0:00:08"]
[BlackClock "0:00:19"]

1. c4 {[%clk 0:02:54]}  c6 {[%clk 0:03:00]} 2. g3 {[%clk 0:02:54]}  d5 {[%clk 0:03:00]} 3. Bg2 {[%clk 0:02:53]}  Nf6 {[%clk 0:02:58]} 4. Nf3 {[%clk 0:02:51]}  e6 {[%clk 0:02:58]} 5. b3 {[%clk 0:02:50]}  Be7 {[%clk 0:02:58]} 6. O-O {[%clk 0:02:49]}  O-O {[%clk 0:02:58]} 7. Bb2 {[%clk 0:02:50]}  a5 {[%clk 0:02:57]} 8. d3 {[%clk 0:02:46]}  Nbd7 {[%clk 0:02:55]} 9. a3 {[%clk 0:02:41]}  b5 {[%clk 0:02:53]} 10. cxb5 {[%clk 0:02:41]}  cxb5 {[%clk 0:02:53]} 11. Nc3 {[%clk 0:02:40]}  Qb6 {[%clk 0:02:51]} 12. e4 {[%clk 0:02:38]}  Bb7 {[%clk 0:02:50]} 13. e5 {[%clk 0:02:28]}  Ne8 {[%clk 0:02:47]} 14. d4 {[%clk 0:02:28]}  Nc7 {[%clk 0:02:40]} 15. Ne2 {[%clk 0:02:26]}  Rfc8 {[%clk 0:02:39]} 16. h4 {[%clk 0:02:26]}  h6 {[%clk 0:02:37]} 17. h5 {[%clk 0:02:25]}  a4 {[%clk 0:02:31]} 18. b4 {[%clk 0:02:24]}  Qa7 {[%clk 0:02:29]} 19. Ne1 {[%clk 0:02:17]}  Nb6 {[%clk 0:02:28]} 20. Nd3 {[%clk 0:02:17]}  Nc4 {[%clk 0:02:29]} 21. Bc1 {[%clk 0:02:16]}  Na6 {[%clk 0:02:26]} 22. Nc5 {[%clk 0:02:14]}  Nxc5 {[%clk 0:02:25]} 23. dxc5 {[%clk 0:02:14]}  d4 {[%clk 0:02:25]} 24. Nxd4 {[%clk 0:02:01]}  Bxg2 {[%clk 0:02:25]} 25. Kxg2 {[%clk 0:02:01]}  Rd8 {[%clk 0:02:25]} 26. Qg4 {[%clk 0:01:40]}  Nxe5 {[%clk 0:02:23]} 27. Qe4 {[%clk 0:01:38]}  Rd5 {[%clk 0:02:12]} 28. Bf4 {[%clk 0:01:35]}  f5 {[%clk 0:02:10]} 29. Qe3 {[%clk 0:01:12]}  Rxd4 {[%clk 0:02:06]} 30. Qxd4 {[%clk 0:01:10]}  Qb7+ {[%clk 0:02:05]} 31. f3 {[%clk 0:01:05]}  Nc4 {[%clk 0:01:51]} 32. Rae1 {[%clk 0:00:51]}  Bf6 {[%clk 0:01:46]} 33. Qf2 {[%clk 0:00:47]}  e5 {[%clk 0:01:46]} 34. Bc1 {[%clk 0:00:47]}  Rd8 {[%clk 0:01:45]} 35. Rd1 {[%clk 0:00:47]}  Re8 {[%clk 0:01:44]} 36. Qc2 {[%clk 0:00:33]}  e4 {[%clk 0:01:42]} 37. fxe4 {[%clk 0:00:32]}  Rxe4 {[%clk 0:01:41]} 38. Kh2 {[%clk 0:00:29]}  Qe7 {[%clk 0:01:37]} 39. Rf2 {[%clk 0:00:29]}  Be5 {[%clk 0:01:31]} 40. Qd3 {[%clk 0:00:25]}  Kh7 {[%clk 0:01:22]} 41. Rxf5 {[%clk 0:00:22]}  Re2+ {[%clk 0:00:59]} 42. Rf2+ {[%clk 0:00:22]}  Kh8 {[%clk 0:00:56]} 43. Rxe2 {[%clk 0:00:20]}  Qf7 {[%clk 0:00:51]} 44. Qd8+ {[%clk 0:00:19]}  Kh7 {[%clk 0:00:50]} 45. Qd3+ {[%clk 0:00:19]}  Kh8 {[%clk 0:00:50]} 46. Kg2 {[%clk 0:00:18]}  Qxh5 {[%clk 0:00:50]} 47. Qf3 {[%clk 0:00:17]}  Qg6 {[%clk 0:00:45]} 48. Rd8+ {[%clk 0:00:17]}  Kh7 {[%clk 0:00:46]} 49. Qe4 {[%clk 0:00:15]}  Bf6 {[%clk 0:00:46]} 50. Qxg6+ {[%clk 0:00:15]}  Kxg6 {[%clk 0:00:47]} 51. c6 {[%clk 0:00:15]}  Bxd8 {[%clk 0:00:46]} 52. Re8 {[%clk 0:00:15]}  Bb6 {[%clk 0:00:42]} 53. Bf4 {[%clk 0:00:14]}  Kf7 {[%clk 0:00:42]} 54. Rb8 {[%clk 0:00:13]}  Ke6 {[%clk 0:00:42]} 55. c7 {[%clk 0:00:13]}  Bxc7 {[%clk 0:00:42]} 56. Bxc7 {[%clk 0:00:13]}  Nxa3 {[%clk 0:00:42]} 57. Bf4 {[%clk 0:00:12]}  Kd5 {[%clk 0:00:42]} 58. Bc1 {[%clk 0:00:12]}  Nb1 {[%clk 0:00:39]} 59. Rxb5+ {[%clk 0:00:12]}  Kc4 {[%clk 0:00:40]} 60. Rb8 {[%clk 0:00:12]}  Nc3 {[%clk 0:00:37]} 61. Bd2 {[%clk 0:00:10]}  Nb5 {[%clk 0:00:37]} 62. Rc8+ {[%clk 0:00:10]}  Kb3 {[%clk 0:00:37]} 63. Rc5 {[%clk 0:00:09]}  Nd4 {[%clk 0:00:36]} 64. b5 {[%clk 0:00:09]}  a3 {[%clk 0:00:36]} 65. b6 {[%clk 0:00:09]}  Ne6 {[%clk 0:00:26]} 66. Rb5+ {[%clk 0:00:08]}  Kc4 {[%clk 0:00:25]} 67. Rb4+ {[%clk 0:00:08]}  Kc5 {[%clk 0:00:24]} 68. b7 {[%clk 0:00:08]}  a2 {[%clk 0:00:21]} 69. Ra4 {[%clk 0:00:09]}  Kb5 {[%clk 0:00:19]} 70. Rxa2 {[%clk 0:00:08]} 1-0


[Site "https://www.chess.com"]

[Event "Titled Tuesday Blitz March 28 Late 2023"]
[White "Panesso Rivera, Henry"]
[Black "Itkis, Boris"]
[WhiteFideId "4402707"]
[BlackFideId "1209167"]
[WhiteElo "2345"]
[BlackElo "2216"]
[Result "0-1"]
[Round "04"]
[TimeControl "180+2"]
[Date "2023.03.28"]
[WhiteClock "0:00:21"]
[BlackClock "0:01:12"]

1. Nf3 {[%clk 0:01:50]}  d5 {[%clk 0:02:58]} 2. e3 {[%clk 0:01:50]}  c5 {[%clk 0:02:57]} 3. d4 {[%clk 0:01:48]}  cxd4 {[%clk 0:02:57]} 4. exd4 {[%clk 0:01:48]}  Nc6 {[%clk 0:02:57]} 5. Ne5 {[%clk 0:01:48]}  Nf6 {[%clk 0:02:55]} 6. Bb5 {[%clk 0:01:45]}  Bd7 {[%clk 0:02:54]} 7. Nxd7 {[%clk 0:01:43]}  Nxd7 {[%clk 0:02:54]} 8. O-O {[%clk 0:01:43]}  e6 {[%clk 0:02:54]} 9. c3 {[%clk 0:01:41]}  Bd6 {[%clk 0:02:51]} 10. Nd2 {[%clk 0:01:40]}  O-O {[%clk 0:02:49]} 11. Nf3 {[%clk 0:01:39]}  a6 {[%clk 0:02:50]} 12. Bd3 {[%clk 0:01:38]}  b5 {[%clk 0:02:47]} 13. Re1 {[%clk 0:01:38]}  h6 {[%clk 0:02:46]} 14. Be3 {[%clk 0:01:33]}  b4 {[%clk 0:02:45]} 15. Qd2 {[%clk 0:01:28]}  bxc3 {[%clk 0:02:44]} 16. bxc3 {[%clk 0:01:29]}  Qf6 {[%clk 0:02:34]} 17. Rab1 {[%clk 0:01:29]}  Rab8 {[%clk 0:02:30]} 18. Bxa6 {[%clk 0:01:27]}  Na5 {[%clk 0:02:27]} 19. Qc2 {[%clk 0:01:07]}  Nb6 {[%clk 0:02:24]} 20. Nd2 {[%clk 0:01:06]}  Qd8 {[%clk 0:02:18]} 21. g3 {[%clk 0:01:03]}  Qc7 {[%clk 0:02:16]} 22. Qd3 {[%clk 0:01:03]}  Ra8 {[%clk 0:02:11]} 23. Rec1 {[%clk 0:01:03]}  Ra7 {[%clk 0:01:42]} 24. Qb5 {[%clk 0:01:01]}  Nbc4 {[%clk 0:01:38]} 25. Nxc4 {[%clk 0:00:57]}  Nxc4 {[%clk 0:01:38]} 26. Rb3 {[%clk 0:00:31]}  Rfa8 {[%clk 0:01:32]} 27. Bb7 {[%clk 0:00:31]}  Rb8 {[%clk 0:01:26]} 28. Rcb1 {[%clk 0:00:29]}  Na5 {[%clk 0:01:22]} 29. R3b2 {[%clk 0:00:23]}  Raxb7 {[%clk 0:01:18]} 30. Qe2 {[%clk 0:00:20]}  Nc4 {[%clk 0:01:17]} 31. Rxb7 {[%clk 0:00:20]}  Rxb7 {[%clk 0:01:18]} 32. Rxb7 {[%clk 0:00:21]}  Qxb7 {[%clk 0:01:19]} 33. Kg2 {[%clk 0:00:21]}  Qb2 {[%clk 0:01:12]} 34. Qd1 {[%clk 0:00:21]} 0-1


[Site "https://www.chess.com"]

[Event "Titled Tuesday Blitz March 28 Late 2023"]
[White "Poliakova, Varvara"]
[Black "Kohler, Aran"]
[WhiteFideId "13518313"]
[BlackFideId "1002856"]
[WhiteElo "2075"]
[BlackElo "2308"]
[Result "1-0"]
[Round "04"]
[TimeControl "180+2"]
[Date "2023.03.28"]
[WhiteClock "0:01:39"]
[BlackClock "0:00:22"]

1. e4 {[%clk 0:02:54]}  c6 {[%clk 0:02:59]} 2. d4 {[%clk 0:02:54]}  d5 {[%clk 0:02:59]} 3. Nd2 {[%clk 0:02:55]}  dxe4 {[%clk 0:02:58]} 4. Nxe4 {[%clk 0:02:56]}  Bf5 {[%clk 0:02:58]} 5. Ng3 {[%clk 0:02:56]}  Bg6 {[%clk 0:02:58]} 6. h4 {[%clk 0:02:56]}  h6 {[%clk 0:02:59]} 7. Nh3 {[%clk 0:02:57]}  e6 {[%clk 0:02:54]} 8. Nf4 {[%clk 0:02:56]}  Bh7 {[%clk 0:02:54]} 9. c3 {[%clk 0:02:56]}  Nf6 {[%clk 0:02:54]} 10. Bd3 {[%clk 0:02:57]}  Bd6 {[%clk 0:02:46]} 11. Nfh5 {[%clk 0:02:56]}  O-O {[%clk 0:02:26]} 12. Bg5 {[%clk 0:02:34]}  Nbd7 {[%clk 0:02:21]} 13. Bxh7+ {[%clk 0:02:26]}  Kxh7 {[%clk 0:02:19]} 14. Qf3 {[%clk 0:02:27]}  Bxg3 {[%clk 0:02:09]} 15. fxg3 {[%clk 0:02:16]}  Qa5 {[%clk 0:02:08]} 16. Nxf6+ {[%clk 0:02:09]}  Nxf6 {[%clk 0:02:03]} 17. Bxf6 {[%clk 0:02:09]}  gxf6 {[%clk 0:02:03]} 18. Qxf6 {[%clk 0:02:09]}  Qf5 {[%clk 0:01:43]} 19. Qxf5+ {[%clk 0:02:09]}  exf5 {[%clk 0:01:43]} 20. O-O {[%clk 0:02:09]}  Kg6 {[%clk 0:01:34]} 21. Rae1 {[%clk 0:01:59]}  Rfe8 {[%clk 0:01:32]} 22. Kf2 {[%clk 0:01:59]}  Re6 {[%clk 0:01:28]} 23. Rxe6+ {[%clk 0:01:51]}  fxe6 {[%clk 0:01:28]} 24. Kf3 {[%clk 0:01:51]}  Kf6 {[%clk 0:01:27]} 25. g4 {[%clk 0:01:51]}  Rg8 {[%clk 0:01:21]} 26. gxf5 {[%clk 0:01:50]}  exf5 {[%clk 0:01:17]} 27. Re1 {[%clk 0:01:50]}  b5 {[%clk 0:01:07]} 28. Re5 {[%clk 0:01:45]}  Rg4 {[%clk 0:00:51]} 29. g3 {[%clk 0:01:42]}  Rg8 {[%clk 0:00:40]} 30. Rc5 {[%clk 0:01:39]}  Rc8 {[%clk 0:00:33]} 31. Kf4 {[%clk 0:01:38]}  Ke6 {[%clk 0:00:22]} 32. Rxf5 {[%clk 0:01:39]} 1-0


[Site "https://www.chess.com"]

[Event "Titled Tuesday Blitz March 28 Late 2023"]
[White "Freitag, Manfred"]
[Black "Wu, Sibo"]
[WhiteFideId "1602004"]
[BlackFideId "8606048"]
[WhiteElo "2275"]
[BlackElo "2280"]
[Result "1-0"]
[Round "04"]
[TimeControl "180+2"]
[Date "2023.03.28"]
[WhiteClock "0:02:54"]
[BlackClock "0:01:44"]

1. e4 {[%clk 0:02:56]}  c5 {[%clk 0:03:00]} 2. Nf3 {[%clk 0:02:56]}  Nc6 {[%clk 0:03:00]} 3. d4 {[%clk 0:02:56]}  cxd4 {[%clk 0:03:01]} 4. Nxd4 {[%clk 0:02:57]}  Nf6 {[%clk 0:03:02]} 5. Nc3 {[%clk 0:02:57]}  e5 {[%clk 0:03:02]} 6. Ndb5 {[%clk 0:02:57]}  d6 {[%clk 0:03:02]} 7. Bg5 {[%clk 0:02:57]}  a6 {[%clk 0:03:02]} 8. Na3 {[%clk 0:02:58]}  b5 {[%clk 0:03:01]} 9. Bxf6 {[%clk 0:02:59]}  gxf6 {[%clk 0:03:00]} 10. Nd5 {[%clk 0:03:00]}  Bg7 {[%clk 0:03:01]} 11. Bd3 {[%clk 0:03:00]}  Ne7 {[%clk 0:03:00]} 12. Nxe7 {[%clk 0:03:00]}  Qxe7 {[%clk 0:02:59]} 13. O-O {[%clk 0:03:01]}  f5 {[%clk 0:02:59]} 14. c4 {[%clk 0:03:01]}  O-O {[%clk 0:02:42]} 15. Qf3 {[%clk 0:03:00]}  bxc4 {[%clk 0:02:35]} 16. Nxc4 {[%clk 0:02:59]}  d5 {[%clk 0:02:35]} 17. exd5 {[%clk 0:02:59]}  e4 {[%clk 0:02:34]} 18. Qe3 {[%clk 0:03:00]}  Qd8 {[%clk 0:02:22]} 19. Bc2 {[%clk 0:02:59]}  Rb8 {[%clk 0:01:51]} 20. Rad1 {[%clk 0:02:58]}  Bxb2 {[%clk 0:01:44]} 21. Qg3+ {[%clk 0:02:54]} 1-0


[Site "https://www.chess.com"]

[Event "Titled Tuesday Blitz March 28 Late 2023"]
[White "Fernandez Sanchez, Mario Andres"]
[Black "Adan Bermudez, Sergio"]
[WhiteFideId "6501621"]
[BlackFideId "2292726"]
[WhiteElo "2050"]
[BlackElo "2292"]
[Result "0-1"]
[Round "04"]
[TimeControl "180+2"]
[Date "2023.03.28"]
[WhiteClock "0:00:38"]
[BlackClock "0:00:52"]

1. d4 {[%clk 0:03:00]}  d5 {[%clk 0:02:59]} 2. Bf4 {[%clk 0:03:00]}  c5 {[%clk 0:02:59]} 3. e3 {[%clk 0:02:59]}  cxd4 {[%clk 0:03:00]} 4. exd4 {[%clk 0:02:59]}  Nc6 {[%clk 0:03:00]} 5. c3 {[%clk 0:03:00]}  Bf5 {[%clk 0:02:58]} 6. Nd2 {[%clk 0:02:59]}  Nf6 {[%clk 0:02:56]} 7. Ngf3 {[%clk 0:02:59]}  h6 {[%clk 0:02:55]} 8. Qb3 {[%clk 0:02:58]}  Qb6 {[%clk 0:02:51]} 9. Qxb6 {[%clk 0:02:57]}  axb6 {[%clk 0:02:52]} 10. Bb5 {[%clk 0:02:56]}  e6 {[%clk 0:02:50]} 11. O-O {[%clk 0:02:49]}  Be7 {[%clk 0:02:48]} 12. Rfe1 {[%clk 0:02:42]}  O-O {[%clk 0:02:48]} 13. Ne5 {[%clk 0:02:42]}  Rfc8 {[%clk 0:02:46]} 14. a3 {[%clk 0:02:42]}  Na5 {[%clk 0:02:28]} 15. h3 {[%clk 0:02:39]}  g5 {[%clk 0:02:23]} 16. Bh2 {[%clk 0:02:37]}  Bc2 {[%clk 0:02:15]} 17. Bd3 {[%clk 0:02:35]}  Bxd3 {[%clk 0:02:15]} 18. Nxd3 {[%clk 0:02:36]}  b5 {[%clk 0:02:11]} 19. Be5 {[%clk 0:02:28]}  Nc4 {[%clk 0:02:10]} 20. Nxc4 {[%clk 0:02:25]}  bxc4 {[%clk 0:02:10]} 21. Nb4 {[%clk 0:02:17]}  Ne4 {[%clk 0:02:03]} 22. f3 {[%clk 0:02:13]}  Nd2 {[%clk 0:02:00]} 23. Nc2 {[%clk 0:02:03]}  f6 {[%clk 0:01:55]} 24. Bh2 {[%clk 0:01:57]}  Kf7 {[%clk 0:01:55]} 25. Re2 {[%clk 0:01:56]}  Nb3 {[%clk 0:01:54]} 26. Rae1 {[%clk 0:01:56]}  Rc6 {[%clk 0:01:51]} 27. Ne3 {[%clk 0:01:53]}  Bf8 {[%clk 0:01:49]} 28. Ng4 {[%clk 0:01:52]}  h5 {[%clk 0:01:47]} 29. Nf2 {[%clk 0:01:52]}  Raa6 {[%clk 0:01:41]} 30. Nd1 {[%clk 0:01:51]}  Rab6 {[%clk 0:01:40]} 31. Kf2 {[%clk 0:01:44]}  Nc1 {[%clk 0:01:40]} 32. Rd2 {[%clk 0:01:40]}  Nd3+ {[%clk 0:01:40]} 33. Rxd3 {[%clk 0:01:40]}  cxd3 {[%clk 0:01:41]} 34. Ke3 {[%clk 0:01:41]}  Bd6 {[%clk 0:01:32]} 35. Bxd6 {[%clk 0:01:39]}  Rxd6 {[%clk 0:01:33]} 36. Kxd3 {[%clk 0:01:40]}  Rbc6 {[%clk 0:01:32]} 37. b4 {[%clk 0:01:32]}  b5 {[%clk 0:01:31]} 38. Nb2 {[%clk 0:01:31]}  Ra6 {[%clk 0:01:31]} 39. Ra1 {[%clk 0:01:31]}  Rd7 {[%clk 0:01:30]} 40. a4 {[%clk 0:01:31]}  bxa4 {[%clk 0:01:29]} 41. Rxa4 {[%clk 0:01:28]}  Rda7 {[%clk 0:01:28]} 42. Rxa6 {[%clk 0:01:20]}  Rxa6 {[%clk 0:01:29]} 43. b5 {[%clk 0:01:19]}  Ra2 {[%clk 0:01:29]} 44. Kc2 {[%clk 0:01:14]}  Ke7 {[%clk 0:01:29]} 45. Kb3 {[%clk 0:01:14]}  Ra1 {[%clk 0:01:24]} 46. Nd3 {[%clk 0:01:14]}  Kd6 {[%clk 0:01:21]} 47. f4 {[%clk 0:01:09]}  Rb1+ {[%clk 0:01:12]} 48. Ka4 {[%clk 0:01:09]}  h4 {[%clk 0:01:10]} 49. fxg5 {[%clk 0:01:06]}  fxg5 {[%clk 0:01:09]} 50. Ne5 {[%clk 0:01:06]}  Rb2 {[%clk 0:01:07]} 51. Nf7+ {[%clk 0:01:04]}  Kd7 {[%clk 0:01:01]} 52. Nxg5 {[%clk 0:01:05]}  Rxg2 {[%clk 0:01:01]} 53. Nf3 {[%clk 0:01:03]}  Rg3 {[%clk 0:00:59]} 54. Nxh4 {[%clk 0:01:03]}  Rxc3 {[%clk 0:00:59]} 55. Ng6 {[%clk 0:00:58]}  Rc4+ {[%clk 0:00:58]} 56. Ka5 {[%clk 0:00:58]}  Rxd4 {[%clk 0:00:58]} 57. Ka6 {[%clk 0:00:52]}  Ra4+ {[%clk 0:00:57]} 58. Kb7 {[%clk 0:00:52]}  Kd6 {[%clk 0:00:53]} 59. b6 {[%clk 0:00:50]}  d4 {[%clk 0:00:53]} 60. Nf4 {[%clk 0:00:49]}  e5 {[%clk 0:00:54]} 61. Nd3 {[%clk 0:00:41]}  e4 {[%clk 0:00:54]} 62. Nb2 {[%clk 0:00:41]}  Rb4 {[%clk 0:00:53]} 63. Nd1 {[%clk 0:00:41]}  e3 {[%clk 0:00:52]} 64. Ka7 {[%clk 0:00:38]}  e2 {[%clk 0:00:52]} 0-1


[Site "https://www.chess.com"]

[Event "Titled Tuesday Blitz March 28 Late 2023"]
[White "Tymrakiewicz, Rafal"]
[Black "Baskakov, Egor"]
[WhiteFideId "1108832"]
[BlackFideId "24197866"]
[WhiteElo "2151"]
[BlackElo "2212"]
[Result "0-1"]
[Round "04"]
[TimeControl "180+2"]
[Date "2023.03.28"]
[WhiteClock "0:00:03"]
[BlackClock "0:00:09"]

1. e4 {[%clk 0:03:00]}  c5 {[%clk 0:02:57]} 2. d4 {[%clk 0:02:56]}  cxd4 {[%clk 0:02:57]} 3. c3 {[%clk 0:02:55]}  dxc3 {[%clk 0:02:56]} 4. Nxc3 {[%clk 0:02:44]}  Nc6 {[%clk 0:02:56]} 5. Nf3 {[%clk 0:02:44]}  g6 {[%clk 0:02:56]} 6. Bc4 {[%clk 0:02:44]}  Bg7 {[%clk 0:02:57]} 7. e5 {[%clk 0:02:40]}  Nh6 {[%clk 0:02:45]} 8. O-O {[%clk 0:02:32]}  O-O {[%clk 0:02:45]} 9. Bf4 {[%clk 0:02:32]}  Nf5 {[%clk 0:02:41]} 10. g4 {[%clk 0:02:29]}  Nh6 {[%clk 0:02:31]} 11. h3 {[%clk 0:02:29]}  Kh8 {[%clk 0:02:27]} 12. Qd2 {[%clk 0:02:27]}  Ng8 {[%clk 0:02:27]} 13. Rad1 {[%clk 0:02:27]}  b6 {[%clk 0:02:08]} 14. Ne4 {[%clk 0:02:17]}  f6 {[%clk 0:02:00]} 15. exf6 {[%clk 0:01:57]}  Nxf6 {[%clk 0:02:01]} 16. Neg5 {[%clk 0:01:49]}  Qe8 {[%clk 0:01:28]} 17. Rfe1 {[%clk 0:01:49]}  Bb7 {[%clk 0:01:25]} 18. a3 {[%clk 0:01:33]}  Rc8 {[%clk 0:01:23]} 19. Ba2 {[%clk 0:01:29]}  e6 {[%clk 0:01:15]} 20. Bd6 {[%clk 0:01:25]}  Rg8 {[%clk 0:01:12]} 21. b4 {[%clk 0:01:18]}  h6 {[%clk 0:01:08]} 22. Ne4 {[%clk 0:01:05]}  Nxe4 {[%clk 0:01:04]} 23. Rxe4 {[%clk 0:01:06]}  Ne7 {[%clk 0:00:55]} 24. Re3 {[%clk 0:00:54]}  Nd5 {[%clk 0:00:52]} 25. Rd3 {[%clk 0:00:44]}  Nc3 {[%clk 0:00:50]} 26. Rxc3 {[%clk 0:00:42]}  Rxc3 {[%clk 0:00:48]} 27. Be5 {[%clk 0:00:40]}  Kh7 {[%clk 0:00:40]} 28. Qxc3 {[%clk 0:00:39]}  Bxf3 {[%clk 0:00:40]} 29. Qxf3 {[%clk 0:00:25]}  Bxe5 {[%clk 0:00:40]} 30. Bb1 {[%clk 0:00:22]}  Rf8 {[%clk 0:00:32]} 31. Qe4 {[%clk 0:00:22]}  Qf7 {[%clk 0:00:22]} 32. f4 {[%clk 0:00:13]}  Bg7 {[%clk 0:00:20]} 33. Rxd7 {[%clk 0:00:13]}  Qxd7 {[%clk 0:00:14]} 34. Qxg6+ {[%clk 0:00:13]}  Kg8 {[%clk 0:00:15]} 35. Qh7+ {[%clk 0:00:13]}  Kf7 {[%clk 0:00:16]} 36. Qg6+ {[%clk 0:00:11]}  Kg8 {[%clk 0:00:15]} 37. Qh7+ {[%clk 0:00:12]}  Kf7 {[%clk 0:00:16]} 38. Qg6+ {[%clk 0:00:12]}  Ke7 {[%clk 0:00:17]} 39. Qxg7+ {[%clk 0:00:12]}  Rf7 {[%clk 0:00:17]} 40. Qb2 {[%clk 0:00:10]}  Rxf4 {[%clk 0:00:15]} 41. Qg7+ {[%clk 0:00:08]}  Rf7 {[%clk 0:00:15]} 42. Qb2 {[%clk 0:00:08]}  Qd6 {[%clk 0:00:15]} 43. Be4 {[%clk 0:00:07]}  Qg3+ {[%clk 0:00:15]} 44. Bg2 {[%clk 0:00:07]}  Qe1+ {[%clk 0:00:15]} 45. Kh2 {[%clk 0:00:07]}  Qf2 {[%clk 0:00:14]} 46. Qc3 {[%clk 0:00:07]}  Qf4+ {[%clk 0:00:14]} 47. Kg1 {[%clk 0:00:06]}  Qf2+ {[%clk 0:00:11]} 48. Kh2 {[%clk 0:00:06]}  Qf4+ {[%clk 0:00:12]} 49. Kg1 {[%clk 0:00:07]}  Qd6 {[%clk 0:00:13]} 50. Qh8 {[%clk 0:00:06]}  e5 {[%clk 0:00:11]} 51. Qg8 {[%clk 0:00:05]}  Qd4+ {[%clk 0:00:09]} 52. Kh2 {[%clk 0:00:05]}  e4 {[%clk 0:00:09]} 53. Qg6 {[%clk 0:00:05]}  Qe5+ {[%clk 0:00:09]} 54. Kg1 {[%clk 0:00:05]}  e3 {[%clk 0:00:09]} 55. Bf1 {[%clk 0:00:03]}  e2 {[%clk 0:00:09]} 56. Bxe2 {[%clk 0:00:03]}  Qxe2 {[%clk 0:00:10]} 57. Qxh6 {[%clk 0:00:03]}  Rf1# {[%clk 0:00:09]} 0-1


[Site "https://www.chess.com"]

[Event "Titled Tuesday Blitz March 28 Late 2023"]
[White "Villiers, Thomas"]
[Black "Zwirs, Nico"]
[WhiteFideId "427209"]
[BlackFideId "1036432"]
[WhiteElo "2164"]
[BlackElo "2381"]
[Result "1/2-1/2"]
[Round "04"]
[TimeControl "180+2"]
[Date "2023.03.28"]
[WhiteClock "0:00:16"]
[BlackClock "0:00:02"]

1. d4 {[%clk 0:03:00]}  d5 {[%clk 0:02:59]} 2. c4 {[%clk 0:03:00]}  e6 {[%clk 0:02:59]} 3. Nf3 {[%clk 0:03:00]}  Nf6 {[%clk 0:02:59]} 4. e3 {[%clk 0:03:00]}  a6 {[%clk 0:02:56]} 5. Nbd2 {[%clk 0:02:56]}  c5 {[%clk 0:02:56]} 6. cxd5 {[%clk 0:02:56]}  exd5 {[%clk 0:02:56]} 7. Bd3 {[%clk 0:02:56]}  c4 {[%clk 0:02:56]} 8. Bc2 {[%clk 0:02:56]}  Nc6 {[%clk 0:02:56]} 9. O-O {[%clk 0:02:56]}  b5 {[%clk 0:02:51]} 10. Re1 {[%clk 0:02:55]}  Be7 {[%clk 0:02:51]} 11. e4 {[%clk 0:02:55]}  dxe4 {[%clk 0:02:51]} 12. Nxe4 {[%clk 0:02:56]}  O-O {[%clk 0:02:50]} 13. Bg5 {[%clk 0:02:49]}  Nb4 {[%clk 0:02:43]} 14. Ne5 {[%clk 0:02:36]}  Bb7 {[%clk 0:02:14]} 15. Bxf6 {[%clk 0:02:32]}  Bxf6 {[%clk 0:02:14]} 16. Nxf6+ {[%clk 0:02:24]}  Qxf6 {[%clk 0:02:08]} 17. Be4 {[%clk 0:02:12]}  Bxe4 {[%clk 0:02:05]} 18. Rxe4 {[%clk 0:02:12]}  Rad8 {[%clk 0:02:03]} 19. Qh5 {[%clk 0:02:08]}  g6 {[%clk 0:01:53]} 20. Qh6 {[%clk 0:02:02]}  Qg7 {[%clk 0:01:47]} 21. Qh4 {[%clk 0:01:42]}  f5 {[%clk 0:01:32]} 22. Re2 {[%clk 0:01:24]}  Rd6 {[%clk 0:01:05]} 23. Nf3 {[%clk 0:01:18]}  Qf6 {[%clk 0:00:58]} 24. Ng5 {[%clk 0:01:07]}  Rd7 {[%clk 0:00:50]} 25. Rae1 {[%clk 0:00:53]}  Qxd4 {[%clk 0:00:45]} 26. Qxd4 {[%clk 0:00:35]}  Rxd4 {[%clk 0:00:46]} 27. Ne6 {[%clk 0:00:35]}  Rd7 {[%clk 0:00:45]} 28. Nxf8 {[%clk 0:00:35]}  Kxf8 {[%clk 0:00:46]} 29. Re8+ {[%clk 0:00:35]}  Kf7 {[%clk 0:00:45]} 30. Rh8 {[%clk 0:00:34]}  Kg7 {[%clk 0:00:43]} 31. Ra8 {[%clk 0:00:34]}  Rd2 {[%clk 0:00:38]} 32. a3 {[%clk 0:00:33]}  Nd3 {[%clk 0:00:36]} 33. Rf1 {[%clk 0:00:31]}  Rxb2 {[%clk 0:00:34]} 34. Rxa6 {[%clk 0:00:32]}  c3 {[%clk 0:00:31]} 35. Rd6 {[%clk 0:00:28]}  Rd2 {[%clk 0:00:23]} 36. g3 {[%clk 0:00:22]}  Nb2 {[%clk 0:00:20]} 37. Rc6 {[%clk 0:00:20]}  c2 {[%clk 0:00:18]} 38. Kg2 {[%clk 0:00:19]}  Nc4 {[%clk 0:00:18]} 39. Rc1 {[%clk 0:00:18]}  Nxa3 {[%clk 0:00:18]} 40. Rc7+ {[%clk 0:00:17]}  Kf6 {[%clk 0:00:18]} 41. Kf3 {[%clk 0:00:14]}  b4 {[%clk 0:00:16]} 42. Ke3 {[%clk 0:00:14]}  Rd1 {[%clk 0:00:15]} 43. Rc6+ {[%clk 0:00:13]}  Kg7 {[%clk 0:00:15]} 44. R1xc2 {[%clk 0:00:13]}  Nxc2+ {[%clk 0:00:14]} 45. Rxc2 {[%clk 0:00:14]}  Rb1 {[%clk 0:00:14]} 46. Rc7+ {[%clk 0:00:14]}  Kh6 {[%clk 0:00:15]} 47. Rb7 {[%clk 0:00:15]}  b3 {[%clk 0:00:15]} 48. Kf3 {[%clk 0:00:15]}  b2 {[%clk 0:00:14]} 49. h4 {[%clk 0:00:15]}  g5 {[%clk 0:00:13]} 50. hxg5+ {[%clk 0:00:15]}  Kxg5 {[%clk 0:00:13]} 51. Rb4 {[%clk 0:00:13]}  h5 {[%clk 0:00:13]} 52. Kg2 {[%clk 0:00:12]}  Kf6 {[%clk 0:00:13]} 53. Kf3 {[%clk 0:00:13]}  Ke6 {[%clk 0:00:14]} 54. Rb5 {[%clk 0:00:13]}  Kd6 {[%clk 0:00:14]} 55. Kf4 {[%clk 0:00:13]}  Kc6 {[%clk 0:00:14]} 56. Rb8 {[%clk 0:00:13]}  Kc7 {[%clk 0:00:13]} 57. Rb3 {[%clk 0:00:12]}  Kd6 {[%clk 0:00:12]} 58. Kxf5 {[%clk 0:00:13]}  Kd5 {[%clk 0:00:13]} 59. Kg5 {[%clk 0:00:13]}  Kc4 {[%clk 0:00:13]} 60. Rb8 {[%clk 0:00:14]}  Kc3 {[%clk 0:00:13]} 61. Rc8+ {[%clk 0:00:14]}  Kd3 {[%clk 0:00:13]} 62. Rb8 {[%clk 0:00:14]}  Ke2 {[%clk 0:00:13]} 63. Kxh5 {[%clk 0:00:15]}  Rh1+ {[%clk 0:00:13]} 64. Kg6 {[%clk 0:00:15]}  b1=Q+ {[%clk 0:00:14]} 65. Rxb1 {[%clk 0:00:15]}  Rxb1 {[%clk 0:00:15]} 66. f4 {[%clk 0:00:16]}  Kf3 {[%clk 0:00:15]} 67. f5 {[%clk 0:00:17]}  Ke4 {[%clk 0:00:11]} 68. g4 {[%clk 0:00:17]}  Ke5 {[%clk 0:00:10]} 69. f6 {[%clk 0:00:16]}  Ke6 {[%clk 0:00:10]} 70. g5 {[%clk 0:00:16]}  Rb5 {[%clk 0:00:09]} 71. f7 {[%clk 0:00:15]}  Rf5 {[%clk 0:00:08]} 72. Kg7 {[%clk 0:00:14]}  Rxf7+ {[%clk 0:00:09]} 73. Kg8 {[%clk 0:00:14]}  Rf5 {[%clk 0:00:08]} 74. g6 {[%clk 0:00:15]}  Kf6 {[%clk 0:00:08]} 75. g7 {[%clk 0:00:15]}  Rg5 {[%clk 0:00:08]} 76. Kh8 {[%clk 0:00:16]}  Rh5+ {[%clk 0:00:08]} 77. Kg8 {[%clk 0:00:16]}  Rb5 {[%clk 0:00:05]} 78. Kh8 {[%clk 0:00:16]}  Rh5+ {[%clk 0:00:05]} 79. Kg8 {[%clk 0:00:16]}  Rg5 {[%clk 0:00:03]} 80. Kh8 {[%clk 0:00:16]}  Rxg7 {[%clk 0:00:02]} 1/2-1/2


[Site "https://www.chess.com"]